fUST/lending_fUST_20250621
["ID","MTS","AMOUNT","RATE_DAILY","PERIOD"]
[366827630,1750483846689,-3781.46341154,0.000235,3]
[366827694,1750483929068,23626.97,0.00024993,60]
[366827695,1750484257136,266478.0,0.00024657,120]
[366827711,1750484776001,153.0,0.00024993,60]
[366827713,1750484888952,163.876811,0.00013699,2]
[366827731,1750484977413,-160.0,0.00019164,2]
[366827734,1750485004571,-180.48467971,0.00019163,2]
[366827754,1750485032455,-119.51532029,0.00019163,2]
[366827755,1750485032466,-24740.0,0.00019164,2]
[366827756,1750485032476,-160.0,0.00019719,2]
[366827757,1750485032486,-274.7329525,0.00019819,2]
[366827758,1750485032496,-184.31772842,0.00019989,2]
[366827759,1750485032506,-500.0,0.00019989,2]
[366827760,1750485032517,-500.0,0.00019989,2]
[366827761,1750485032526,-500.0,0.00019989,2]
[366827762,1750485032537,-320.7047486,0.00019989,2]
[366827763,1750485032546,-500.0,0.00019989,2]
[366827764,1750485032556,-500.0,0.00019989,2]
[366827765,1750485032566,-500.0,0.00019989,2]
[366827766,1750485032576,-500.0,0.00019989,2]
[366827767,1750485032586,-5358.46343386,0.0001999,2]
[366827768,1750485032610,-5956.47080477,0.0001999,2]
[366827769,1750485032621,-300.0,0.00019991,2]
[366827770,1750485032634,-173.953859,0.00020178,2]
[366827771,1750485032646,-174.855,0.00020494,2]
[366827772,1750485032655,-500.0,0.00020809,2]
[366827773,1750485032665,-500.86786359,0.00020809,2]
[366827774,1750485032677,-420.0,0.00020884,2]
[366827775,1750485032687,-211.19422828,0.00020977,2]
[366827776,1750485032698,-500.0,0.00021009,2]
[366827777,1750485032710,-500.0,0.00021163,2]
[366827778,1750485032719,-309.1117326,0.00021178,2]
[366827779,1750485032729,-365.7551581,0.00021233,2]
[366827780,1750485032739,-365.7551581,0.00021233,2]
[366827781,1750485032749,-365.7551581,0.00021233,2]
[366827782,1750485032759,-365.7551581,0.00021233,2]
[366827783,1750485032768,-365.7551581,0.00021233,2]
[366827784,1750485032778,-574.5372799,0.00021315,2]
[366827785,1750485032788,-574.5372799,0.00021315,2]
[366827786,1750485032797,-168.0,0.00021341,2]
[366827787,1750485032807,-153.0,0.0002137,2]
[366827788,1750485032817,-155.644397,0.0002137,2]
[366827789,1750485032827,-153.0,0.0002137,2]
[366827790,1750485032837,-177.2671816,0.0002137,2]
[366827791,1750485032847,-174.459784,0.0002137,2]
[366827792,1750485032858,-159.0806219,0.0002137,2]
[366827793,1750485032868,-177.2671816,0.0002137,2]
[366827794,1750485032877,-159.0806219,0.0002137,2]
[366827795,1750485032887,-177.2671816,0.0002137,2]
[366827796,1750485032897,-153.0,0.0002137,2]
[366827797,1750485032907,-574.5372799,0.0002137,2]
[366827798,1750485032916,-153.0,0.0002137,2]
[366827799,1750485032926,-177.2671816,0.0002137,2]
[366827800,1750485032936,-159.0806219,0.0002137,2]
[366827801,1750485032945,-574.5372799,0.0002137,2]
[366827802,1750485032955,-177.2671816,0.0002137,2]
[366827803,1750485033143,-153.0,0.0002137,2]
[366827804,1750485033155,-153.0,0.0002137,2]
[366827805,1750485033166,-574.5372799,0.0002137,2]
[366827806,1750485033177,-176.3360836,0.0002137,2]
[366827807,1750485033187,-153.0,0.0002137,2]
[366827808,1750485033197,-153.0,0.0002137,2]
[366827809,1750485033208,-153.0,0.0002137,2]
[366827810,1750485033218,-1000.0,0.00021557,2]
[366827811,1750485033229,-155.4107927,0.00021644,2]
[366827812,1750485033240,-424.93363889,0.00021699,2]
[366827813,1750485033249,-836.41202323,0.00021699,2]
[366827814,1750485033260,-160.0,0.000217,2]
[366827815,1750485033271,-213.55395994,0.000217,2]
[366827816,1750485033282,-846.23824438,0.000217,2]
[366827817,1750485033291,-160.0,0.000217,2]
[366827818,1750485033302,-230.10342898,0.000217,2]
[366827819,1750485033312,-420.0,0.00021768,2]
[366827820,1750485033323,-168.0,0.00021823,2]
[366827821,1750485033333,-168.0,0.00021841,2]
[366827822,1750485033343,-160.0,0.00021899,2]
[366827823,1750485033353,-460.0,0.00021917,2]
[366827824,1750485033363,-460.0,0.00021917,2]
[366827825,1750485033378,-465.92982311,0.00021917,2]
[366827826,1750485033390,-458.94599484,0.00021917,2]
[366827827,1750485033400,-468.17484292,0.00021917,2]
[366827828,1750485033409,-462.57867529,0.00021917,2]
[366827829,1750485033419,-460.0,0.00021917,2]
[366827830,1750485033428,-464.49702096,0.00021917,2]
[366827831,1750485033438,-283.086631,0.00021917,2]
[366827832,1750485033448,-471.53539362,0.00021917,2]
[366827833,1750485033457,-197.96950657,0.00021917,2]
[366827834,1750485033471,-262.03049343,0.00021917,2]
[366827835,1750485033481,-342.04610113,0.00021917,2]
[366827836,1750485033491,-736.0,0.00021941,2]
[366827837,1750485033501,-168.0,0.00022038,2]
[366827838,1750485033510,-1052.00787893,0.00022105,2]
[366827839,1750485033530,-500.0,0.00019989,2]
[366827840,1750485033540,-447.99212107,0.00022105,2]
[366827841,1750485033550,-460.0,0.00022191,2]
[366827842,1750485033559,-460.0,0.00022191,2]
[366827843,1750485033569,-460.0,0.00022191,2]
[366827844,1750485033579,-271.4974222,0.00022192,2]
[366827845,1750485033589,-406.0,0.0002232,2]
[366827846,1750485033599,-961.37030498,0.00022327,2]
[366827847,1750485033814,-163.01618379,0.00019163,2]
[366827863,1750485038269,-336.98381621,0.00019163,2]
[366827865,1750485038280,-500.0,0.00019163,2]
[366827866,1750485038290,-500.0,0.00019163,2]
[366827868,1750485038300,-500.0,0.00019163,2]
[366827870,1750485038310,-500.0,0.00019163,2]
[366827872,1750485038319,-500.0,0.00019163,2]
[366827874,1750485038329,-500.0,0.00019163,2]
[366827875,1750485038339,-500.0,0.00019163,2]
[366827876,1750485038349,-500.0,0.00019163,2]
[366827877,1750485038359,-500.0,0.00019163,2]
[366827878,1750485038369,-500.0,0.00019163,2]
[366827879,1750485038380,-500.0,0.00019163,2]
[366827881,1750485038390,-500.0,0.00019163,2]
[366827884,1750485038401,-500.0,0.00019163,2]
[366827886,1750485038412,-500.0,0.00019163,2]
[366827888,1750485038421,-500.0,0.00019163,2]
[366827889,1750485038431,-459.98834078,0.00019163,2]
[366827890,1750485038444,-40.01165922,0.00019163,2]
[366827891,1750485038455,-500.0,0.00019163,2]
[366827892,1750485038464,-500.0,0.00019163,2]
[366827893,1750485038474,-500.0,0.00019163,2]
[366827894,1750485038483,-500.0,0.00019163,2]
[366827895,1750485038493,-331.41741559,0.00019163,2]
[366827896,1750485038505,-168.58258441,0.00019163,2]
[366827897,1750485038515,-500.0,0.00019163,2]
[366827898,1750485038524,-500.0,0.00019163,2]
[366827899,1750485038534,-307.32315034,0.00019163,2]
[366827900,1750485038921,-151.0,0.00019163,2]
[366828067,1750485041518,163.01618379,0.00019102,2]
[366828209,1750485045665,-41.67684966,0.00019163,2]
[366828211,1750485045675,-500.0,0.00019163,2]
[366828213,1750485045685,-500.0,0.00019163,2]
[366828215,1750485045694,-500.0,0.00019163,2]
[366828217,1750485045704,-500.0,0.00019163,2]
[366828218,1750485045714,-500.0,0.00019163,2]
[366828220,1750485045724,-500.0,0.00019163,2]
[366828223,1750485045734,-500.0,0.00019163,2]
[366828224,1750485045743,-500.0,0.00019163,2]
[366828227,1750485045753,-500.0,0.00019163,2]
[366828228,1750485045762,-500.0,0.00019163,2]
[366828230,1750485045772,-500.0,0.00019163,2]
[366828231,1750485045782,-500.0,0.00019163,2]
[366828233,1750485045791,-500.0,0.00019163,2]
[366828235,1750485045801,-174.65564022,0.00019163,2]
[366828237,1750485045812,-500.0,0.00019163,2]
[366828238,1750485045822,-500.0,0.00019163,2]
[366828239,1750485045831,-500.0,0.00019163,2]
[366828240,1750485045841,-500.0,0.00019163,2]
[366828241,1750485045851,-500.0,0.00019163,2]
[366828242,1750485045861,-500.0,0.00019163,2]
[366828243,1750485045871,-500.0,0.00019163,2]
[366828244,1750485045881,-500.0,0.00019163,2]
[366828245,1750485045892,-500.0,0.00019163,2]
[366828246,1750485045902,-500.0,0.00019163,2]
[366828247,1750485045912,-500.0,0.00019989,2]
[366828248,1750485045922,-500.0,0.00019989,2]
[366828249,1750485045932,-500.0,0.00019989,2]
[366828250,1750485045942,-500.0,0.00019989,2]
[366828251,1750485045953,-500.0,0.00019989,2]
[366828252,1750485045964,-2054.11993758,0.000209,4]
[366828253,1750485045974,-2054.11993735,0.00021038,4]
[366828254,1750485045985,-2054.11993735,0.00021176,4]
[366828255,1750485045995,-2054.11993735,0.00021314,5]
[366828256,1750485046005,-2054.11993735,0.00021452,5]
[366828257,1750485046015,-2054.11993735,0.0002159,5]
[366828258,1750485046026,-2054.11993735,0.00021728,5]
[366828259,1750485046036,-2054.11993735,0.00021866,6]
[366828260,1750485046046,-2054.11993735,0.00022003,6]
[366828261,1750485046056,-2054.11993735,0.00022141,6]
[366828262,1750485046065,-2054.11993735,0.00022279,6]
[366828263,1750485046075,-755.10880646,0.00022327,2]
[366828281,1750485046483,-3139.90919649,0.00022327,2]
[366828287,1750485046539,-143.61169207,0.00022327,2]
[366828288,1750485046550,-3992.62330708,0.00022327,2]
[366828289,1750485046560,-207.4,0.00022327,2]
[366828290,1750485046570,-2054.11993735,0.00022417,7]
[366828291,1750485046580,-184.1110067,0.00022438,2]
[366828292,1750485046590,-176.5787153,0.00022438,2]
[366828293,1750485046600,-460.0,0.00022465,2]
[366828294,1750485046610,-460.0,0.00022465,2]
[366828295,1750485046620,-460.0,0.00022465,2]
[366828296,1750485046630,-158.76525043,0.00022489,2]
[366828297,1750485046642,-574.5372799,0.00022521,2]
[366828298,1750485046651,-151.0,0.00022521,7]
[366828299,1750485046661,-926.89267774,0.00022527,2]
[366828300,1750485046671,-2054.11993735,0.00022555,7]
[366828301,1750485046681,-2054.11993735,0.00022693,7]
[366828302,1750485046691,-460.0,0.00022739,2]
[366828303,1750485046701,-277.97369657,0.00022739,2]
[366828304,1750485046712,-460.0,0.00022739,2]
[366828305,1750485046723,-587.0,0.0002276,2]
[366828306,1750485046733,-2054.11993735,0.00022831,8]
[366828307,1750485046742,-151.0,0.00022875,7]
[366828308,1750485046752,-151.0,0.00022875,7]
[366828309,1750485046761,-153.304843,0.00022875,7]
[366828310,1750485046771,-152.437665,0.00022875,7]
[366828311,1750485046781,-151.0,0.00022875,7]
[366828312,1750485046790,-151.0,0.00022875,7]
[366828313,1750485046800,-151.0,0.00022875,7]
[366828314,1750485046810,-151.0,0.00022875,7]
[366828315,1750485046819,-193.28295,0.00022875,7]
[366828316,1750485046829,-432.683507,0.00022875,7]
[366828317,1750485046839,-193.28295,0.00022875,7]
[366828318,1750485046849,-432.683507,0.00022875,7]
[366828319,1750485046858,-155.618782,0.00022875,7]
[366828320,1750485046868,-151.0,0.00022875,7]
[366828321,1750485046878,-151.0,0.00022875,7]
[366828322,1750485046887,-151.0,0.00022875,7]
[366828323,1750485046897,-174.062093,0.00022875,7]
[366828324,1750485046907,-153.045582,0.00022875,7]
[366828325,1750485046917,-151.0,0.00022875,7]
[366828326,1750485046927,-290.132442,0.00022875,7]
[366828327,1750485046937,-290.132442,0.00022875,7]
[366828328,1750485046946,-151.0,0.00022875,7]
[366828329,1750485046956,-5000.0,0.00022875,2]
[366828330,1750485046966,-332.36,0.000229,2]
[366828331,1750485046975,-2054.11993735,0.00022969,8]
[366828332,1750485046985,-260.0,0.00023013,2]
[366828333,1750485046994,-460.0,0.00023013,2]
[366828334,1750485047003,-836.848491,0.00023016,4]
[366828335,1750485047013,-581.5516734,0.00023107,8]
[366828336,1750485050956,-253.81798241,0.00019163,2]
[366828337,1750485052536,216.06644372,0.00019063,2]
[366828338,1750485061352,-236.03405117,0.00019162,2]
[366828339,1750485063671,-63.96594883,0.00019162,2]
[366828340,1750485063695,-86.1934604,0.00019162,2]
[366828341,1750485079939,-158.43263007,0.00019162,2]
[366828342,1750485122197,-177.02203055,0.00019163,2]
[366828343,1750485155211,-215.0,0.00019162,2]
[366828344,1750485183712,-167.31909194,0.00019161,2]
[366828345,1750485242409,-226.67330297,0.00019162,2]
[366828346,1750485275976,-163.74806093,0.00019161,2]
[366828347,1750485303627,-215.33986763,0.0001916,2]
[366828348,1750485358365,-84.66013237,0.0001916,2]
[366828349,1750485358388,-120.10227579,0.0001916,2]
[366828350,1750485365215,-165.39116841,0.0001916,2]
[366828351,1750485396506,-14.5065558,0.0001916,2]
[366828352,1750485396530,-161.74308903,0.0001916,2]
[366828353,1750485422494,-180.10628945,0.0001916,2]
[366828354,1750485482521,-204.97109455,0.0001916,2]
[366828355,1750485514846,-163.74806093,0.00019159,2]
[366828356,1750485543469,-177.00159026,0.00019158,2]
[366828357,1750485602514,-241.76878976,0.00019159,2]
[366828358,1750485602541,-58.23121024,0.00019159,2]
[366828359,1750485639937,-171.43298683,0.00019158,2]
[366828360,1750485663095,-219.25135374,0.00019158,2]
[366828361,1750485724979,-192.90798617,0.00019158,2]
[366828362,1750485756565,-154.02278158,0.00019157,2]
[366828364,1750485876375,-300.0,0.00019156,2]
[366828365,1750485876402,-59.0,0.00019156,2]
[366828366,1750485903167,-168.87291851,0.00019155,2]
[366828367,1750485962627,-166.0273955,0.00019156,2]
[366828368,1750485995554,-281.01849396,0.00019155,2]
[366828370,1750486023779,-236.03405117,0.00019155,2]
[366828371,1750486025341,163.876811,0.00013699,2]
[366828373,1750486084685,-150.0,0.00019154,2]
[366828375,1750486123995,-150.0,0.00019154,2]
[366828376,1750486124206,18.25984059,0.00019154,2]
[366828377,1750486203610,-154.70397145,0.00019153,2]
[366828389,1750486232146,-145.29602855,0.00019153,2]
[366828390,1750486232170,-91.39395342,0.00019153,2]
[366828414,1750486232778,-160.60604658,0.00019153,2]
[366828415,1750486232788,-805.0,0.00019153,2]
[366828416,1750486232798,-159.00393235,0.00019153,2]
[366828417,1750486232808,-526.31909194,0.00019153,2]
[366828418,1750486232817,-500.0,0.00019153,2]
[366828419,1750486232827,-500.0,0.00019153,2]
[366828420,1750486232836,-500.0,0.00019153,2]
[366828421,1750486232846,-500.0,0.00019153,2]
[366828422,1750486232856,-500.0,0.00019153,2]
[366828423,1750486232866,-500.0,0.00019153,2]
[366828424,1750486232876,-500.0,0.00019153,2]
[366828425,1750486232886,-500.0,0.00019153,2]
[366828426,1750486232895,-500.0,0.00019153,2]
[366828427,1750486232905,-500.0,0.00019153,2]
[366828428,1750486232915,-500.0,0.00019153,2]
[366828429,1750486232924,-500.0,0.00019153,2]
[366828433,1750486232934,-500.0,0.00019153,2]
[366828435,1750486232943,-565.56274365,0.00019153,2]
[366828436,1750486232952,-500.0,0.00019153,2]
[366828437,1750486232962,-500.0,0.00019153,2]
[366828438,1750486232972,-500.0,0.00019153,2]
[366828439,1750486232981,-500.0,0.00019153,2]
[366828440,1750486232991,-500.0,0.00019153,2]
[366828441,1750486233001,-219.25135374,0.0001999,2]
[366828442,1750486233011,-2258.53884055,0.00020113,2]
[366828443,1750486233020,-24900.0,0.00020162,2]
[366828444,1750486233030,-244.926016,0.00020383,2]
[366828445,1750486233040,-182.266,0.00020493,2]
[366828446,1750486233050,-508.10375771,0.0002055,2]
[366828447,1750486233060,-500.0,0.0002055,2]
[366828448,1750486233075,-377.1150594,0.00020666,2]
[366828449,1750486233085,-233.041975,0.00020786,2]
[366828450,1750486233095,-420.0,0.00020874,2]
[366828451,1750486233104,-939.20424851,0.000209,4]
[366828452,1750486233114,-939.20424831,0.00021038,4]
[366828453,1750486233124,-500.0,0.00021163,2]
[366828454,1750486233135,-939.20424831,0.00021176,4]
[366828455,1750486233144,-374.98420983,0.00021277,2]
[366828456,1750486233154,-939.20424831,0.00021314,5]
[366828457,1750486233164,-939.20424831,0.00021452,5]
[366828458,1750486233174,-939.20424831,0.0002159,5]
[366828459,1750486233183,-2529.73222303,0.00021619,2]
[366828460,1750486233193,-207.4,0.00021623,2]
[366828461,1750486233202,-5000.0,0.00021687,2]
[366828462,1750486233212,-836.41202323,0.000217,2]
[366828463,1750486233222,-160.0,0.000217,2]
[366828464,1750486233231,-230.10342898,0.000217,2]
[366828465,1750486233241,-846.23824438,0.000217,2]
[366828466,1750486233251,-12549.17366507,0.000217,2]
[366828467,1750486233260,-160.0,0.000217,2]
[366828468,1750486233269,-424.93363889,0.000217,2]
[366828469,1750486233279,-213.55395994,0.000217,2]
[366828470,1750486233289,-160.0,0.000217,2]
[366828471,1750486233298,-160.0,0.000217,2]
[366828472,1750486233308,-160.0,0.000217,2]
[366828473,1750486233321,-160.0,0.000217,2]
[366828474,1750486233331,-939.20424831,0.00021728,5]
[366828475,1750486233341,-445.69265997,0.00021838,2]
[366828476,1750486233351,-939.20424831,0.00021866,6]
[366828477,1750486233362,-150.0,0.000219,2]
[366828478,1750486233372,-500.0,0.00021914,2]
[366828479,1750486233382,-500.0,0.00021914,2]
[366828480,1750486233393,-500.0,0.00021914,2]
[366828481,1750486233404,-500.0,0.00021914,2]
[366828482,1750486233413,-500.0,0.00021914,2]
[366828483,1750486233423,-500.0,0.00021914,2]
[366828484,1750486233435,-500.0,0.00021914,2]
[366828485,1750486233446,-500.0,0.00021914,2]
[366828486,1750486233456,-500.0,0.00021914,2]
[366828487,1750486233466,-500.0,0.00021914,2]
[366828488,1750486233476,-594.1002229,0.00021914,2]
[366828489,1750486233486,-372.41554806,0.00021914,2]
[366828490,1750486233499,-127.58445194,0.00021914,2]
[366828491,1750486233510,-500.0,0.00021914,2]
[366828492,1750486233522,-500.0,0.00021914,2]
[366828493,1750486233532,-500.0,0.00021914,2]
[366828494,1750486233543,-500.0,0.00021914,2]
[366828495,1750486233553,-500.0,0.00021914,2]
[366828496,1750486233563,-500.0,0.00021914,2]
[366828497,1750486233574,-400.0,0.00021914,2]
[366828498,1750486233584,-500.0,0.00021914,2]
[366828499,1750486233594,-300.0,0.00021914,2]
[366828500,1750486233604,-482.68359807,0.00021917,2]
[366828501,1750486233615,-600.0,0.00021917,2]
[366828502,1750486233624,-420.10227579,0.00021917,2]
[366828503,1750486233634,-460.0,0.00021917,2]
[366828504,1750486233643,-392.00159026,0.00021917,2]
[366828505,1750486233653,-499.20272155,0.00021917,2]
[366828506,1750486233662,-307.51708483,0.00021917,2]
[366828514,1750486238569,-500.0,0.00019153,2]
[366828515,1750486238580,-500.0,0.00019153,2]
[366828516,1750486238590,-500.0,0.00019153,2]
[366828517,1750486238600,-500.0,0.00019153,2]
[366828518,1750486238610,-500.0,0.00019153,2]
[366828519,1750486238620,-500.0,0.00019153,2]
[366828520,1750486238630,-103.02334372,0.00021917,2]
[366828521,1750486238640,-296.23920745,0.00022003,6]
[366828540,1750486240681,-642.96504086,0.00022003,6]
[366828542,1750486240691,-406.0,0.00022041,2]
[366828544,1750486240701,-939.20424831,0.00022141,6]
[366828546,1750486240710,-460.0,0.00022191,2]
[366828548,1750486240719,-939.20424831,0.00022279,6]
[366828550,1750486240729,-939.20424831,0.00022417,7]
[366828553,1750486240739,-460.0,0.00022465,2]
[366828555,1750486240748,-151.0,0.00022521,7]
[366828557,1750486240758,-939.20424831,0.00022555,7]
[366828559,1750486240767,-939.20424831,0.00022693,7]
[366828561,1750486240778,-96.3244202,0.00022739,2]
[366828600,1750486241122,-0.01142983,0.00022739,2]
[366829164,1750486251961,-150.30261681,0.00019153,2]
[366829165,1750486263539,-154.24043847,0.00019152,2]
[366829166,1750486269832,-145.75956153,0.00019152,2]
[366829167,1750486269856,-6.41265352,0.00019153,2]
[366829168,1750486275909,-274.54194969,0.00019153,2]
[366829169,1750486322978,-300.0,0.00019152,2]
[366829171,1750486341757,-68.74277998,0.00019153,2]
[366829172,1750486341780,-114.67533948,0.00019153,2]
[366829185,1750487047865,163.876811,0.00013699,2]
[366829193,1750487141100,-1000.0,0.00020666,2]
[366829194,1750487141121,-186.43358,0.00020764,2]
[366829195,1750487141143,-198.549116,0.00020767,2]
[366829196,1750487141166,-415.9010358,0.00021,2]
[366829197,1750487141188,-500.0,0.00021163,2]
[366829198,1750487141209,-183.4181194,0.00021647,2]
[366829199,1750487141233,-207.4,0.00021685,2]
[366829200,1750487141254,-300.0,0.00021696,2]
[366829201,1750487141275,-155.0,0.00021696,2]
[366829202,1750487141298,-300.0,0.00021696,2]
[366829203,1750487141320,-950.0,0.00021696,2]
[366829204,1750487141344,-295.58482937,0.00021697,2]
[366829205,1750487141366,-500.0,0.00021697,2]
[366829206,1750487141389,-260.58948386,0.00021697,2]
[366829207,1750487141414,-500.0,0.00021697,2]
[366829208,1750487141437,-500.0,0.00021697,2]
[366829209,1750487141461,-500.0,0.00021697,2]
[366829210,1750487141483,-500.0,0.00021697,2]
[366829211,1750487141505,-519.77443394,0.00021697,2]
[366829212,1750487141529,-500.0,0.00021697,2]
[366829213,1750487141561,-500.0,0.00021697,2]
[366829214,1750487141586,-274.54194969,0.00021697,2]
[366829215,1750487141609,-553.34846883,0.00021697,2]
[366829216,1750487141633,-12549.17366507,0.00021698,2]
[366829217,1750487141655,-424.93363889,0.00021698,2]
[366829218,1750487141678,-160.0,0.00021698,2]
[366829219,1750487141702,-160.0,0.00021698,2]
[366829220,1750487141724,-213.55395994,0.00021698,2]
[366829221,1750487141746,-160.0,0.00021698,2]
[366829222,1750487141768,-230.10342898,0.00021698,2]
[366829223,1750487141790,-846.23824438,0.00021698,2]
[366829224,1750487141811,-606.91052555,0.00021699,2]
[366829225,1750487141832,-504.03301066,0.000217,2]
[366829226,1750487141852,-500.0,0.000217,2]
[366829227,1750487141873,-504.09252298,0.000217,2]
[366829228,1750487141894,-502.76461168,0.000217,2]
[366829229,1750487141916,-500.84850324,0.000217,2]
[366829230,1750487141937,-500.0,0.000217,2]
[366829231,1750487141958,-266.15255409,0.000217,2]
[366829232,1750487141978,-235.88530578,0.000217,2]
[366829233,1750487141999,-500.0,0.000217,2]
[366829234,1750487142019,-406.97126698,0.000217,2]
[366829235,1750487142039,-501.05937485,0.000217,2]
[366829236,1750487142060,-500.0,0.000217,2]
[366829237,1750487142083,-366.02822135,0.00021713,2]
[366829238,1750487142104,-236.68998197,0.0002181,2]
[366829239,1750487142126,-460.0,0.00021917,2]
[366829240,1750487142149,-562.02992148,0.00021917,2]
[366829241,1750487142171,-300.0,0.00021917,2]
[366829242,1750487142192,-500.0,0.00022191,2]
[366829243,1750487142213,-460.0,0.00022191,2]
[366829244,1750487142234,-406.0,0.00022399,2]
[366829245,1750487142254,-500.0,0.00022465,2]
[366829246,1750487142278,-460.0,0.00022465,2]
[366829247,1750487142299,-177.1504183,0.00022521,2]
[366829248,1750487142320,-590.7992313,0.00022521,2]
[366829249,1750487142341,-260.51832066,0.00022739,2]
[366829250,1750487142362,-237.2561088,0.00022739,2]
[366829251,1750487142391,-577.95026667,0.000229,8]
[366829252,1750487142420,-577.95026655,0.00022969,8]
[366829253,1750487142442,-299.12,0.00023,2]
[366829254,1750487142465,-717.298706,0.00023016,4]
[366829255,1750487142495,-577.95026655,0.00023038,8]
[366829256,1750487142517,-215.0738,0.00023054,2]
[366829257,1750487142546,-577.95026655,0.00023107,8]
[366829258,1750487142575,-577.95026655,0.00023176,8]
[366829259,1750487142597,-800.0,0.00023229,2]
[366829260,1750487142620,-345.17380086,0.00023243,2]
[366829261,1750487142650,-577.95026655,0.00023245,8]
[366829262,1750487142673,-168.0,0.000233,2]
[366829263,1750487142701,-800.0,0.00023312,2]
[366829264,1750487142879,-577.95026655,0.00023314,9]
[366829265,1750487142903,-168.0,0.00023351,2]
[366829266,1750487142925,-800.0,0.00023366,2]
[366829267,1750487142946,-800.0,0.00023368,2]
[366829268,1750487142976,-577.95026655,0.00023383,9]
[366829269,1750487142997,-607.68607632,0.00023421,2]
[366829270,1750487143019,-261.99932244,0.00023421,2]
[366829271,1750487143040,-153.0,0.00023443,2]
[366829272,1750487143063,-153.0,0.00023443,2]
[366829273,1750487143085,-153.0,0.00023443,2]
[366829274,1750487143108,-153.0,0.00023443,2]
[366829275,1750487143131,-153.0,0.00023443,2]
[366829276,1750487143155,-153.0,0.00023443,2]
[366829277,1750487143178,-153.0,0.00023443,2]
[366829278,1750487143201,-153.0,0.00023443,2]
[366829279,1750487143229,-577.95026655,0.00023452,9]
[366829280,1750487143250,-190.29628652,0.00023494,2]
[366829281,1750487143274,-500.0,0.00023494,2]
[366829282,1750487143299,-500.0,0.00023494,2]
[366829283,1750487143323,-500.0,0.00023494,2]
[366829284,1750487143348,-500.0,0.00023494,2]
[366829285,1750487143373,-500.0,0.00023494,2]
[366829286,1750487143399,-500.0,0.00023494,2]
[366829287,1750487143425,-500.0,0.00023494,2]
[366829288,1750487143450,-500.0,0.00023494,2]
[366829289,1750487143475,-500.0,0.00023494,2]
[366829290,1750487143501,-500.0,0.00023494,2]
[366829291,1750487143525,-500.0,0.00023494,2]
[366829292,1750487143550,-500.0,0.00023494,2]
[366829293,1750487143574,-500.0,0.00023494,2]
[366829294,1750487143600,-500.0,0.00023494,2]
[366829295,1750487143630,-500.0,0.00023494,2]
[366829296,1750487143657,-500.0,0.00023494,2]
[366829297,1750487143682,-500.0,0.00023494,2]
[366829298,1750487143710,-500.0,0.00023494,2]
[366829299,1750487143738,-325.92677752,0.00023494,2]
[366829300,1750487143765,-500.0,0.00023494,2]
[366829301,1750487143790,-500.0,0.00023494,2]
[366829302,1750487143816,-500.0,0.00023494,2]
[366829303,1750487143838,-1005.62755928,0.00023499,2]
[366829304,1750487143870,-13332.61544319,0.000235,2]
[366829378,1750487432853,-185.221,0.00021699,2]
[366829380,1750487432863,-339.26094098,0.00022499,2]
[366829382,1750487432873,-300.0,0.00022499,2]
[366829384,1750487432883,-24900.0,0.000225,2]
[366829386,1750487432896,-763.0026678,0.00022556,2]
[366829388,1750487432906,-269.21,0.00023,2]
[366829390,1750487432916,-10745.02423831,0.00023,2]
[366829392,1750487432925,-614.827463,0.00023029,4]